bitfinex/quotes_BTCUSD_20250614
["timestamp","ask_amount","ask_price","bid_price","bid_amount"]
[1749886423358,1.44437423,105120.0,105110.0,0.2489261]
[1749886423558,0.88966829,105120.0,105110.0,0.23777896]
[1749886423979,1.44437423,105120.0,105110.0,0.2489261]
[1749886424198,1.28833423,105120.0,105110.0,0.23777896]
[1749886424379,1.28833423,105120.0,105110.0,0.25561437]
[1749886424542,1.28833423,105120.0,105110.0,0.23777896]
[1749886424752,1.28833423,105120.0,105110.0,0.25561437]
[1749886424955,1.28833423,105120.0,105110.0,0.25561436]
[1749886425160,1.28833423,105120.0,105110.0,0.24892609]
[1749886425361,1.28833423,105120.0,105110.0,0.25561436]
[1749886425568,1.28833423,105120.0,105110.0,0.28787896]
[1749886425780,1.28833423,105120.0,105110.0,0.28119069]
[1749886425990,1.28833423,105120.0,105110.0,0.30853976]
[1749886426357,1.28833423,105120.0,105110.0,0.29739262]
[1749886426581,1.28833423,105120.0,105110.0,0.31522803]
[1749886426954,1.28833423,105120.0,105110.0,0.30853975]
[1749886427164,1.28833423,105120.0,105110.0,0.29070435]
[1749886427390,1.28833423,105120.0,105110.0,0.31522806]
[1749886427524,1.28833423,105120.0,105110.0,0.29739263]
[1749886427732,1.28833423,105120.0,105110.0,0.31522806]
[1749886427932,1.28833423,105120.0,105110.0,0.31523341]
[1749886428136,1.28833423,105120.0,105110.0,0.29903147]
[1749886428333,1.28833423,105120.0,105110.0,0.29739473]
[1749886428745,1.28833423,105120.0,105110.0,0.31523551]
[1749886429625,1.28833423,105120.0,105110.0,0.31522883]
[1749886430338,0.73362829,105120.0,105110.0,0.32472456]
[1749886430572,1.28833423,105120.0,105110.0,0.30690168]
[1749886430752,1.28833423,105120.0,105110.0,0.32472454]
[1749886431968,0.73362829,105120.0,105110.0,0.30690167]
[1749886432171,1.28833423,105120.0,105110.0,0.32472454]
[1749886432410,1.28833423,105120.0,105110.0,0.32472272]
[1749886432810,1.28833423,105120.0,105110.0,0.35561784]
[1749886432972,1.28833423,105120.0,105110.0,0.32471783]
[1749886433185,1.28833423,105120.0,105110.0,0.31803609]
[1749886433396,1.28833423,105120.0,105110.0,0.32471782]
[1749886433747,1.28833423,105120.0,105110.0,0.31803608]
[1749886433895,1.28833423,105120.0,105110.0,0.31803609]
[1749886434099,1.28833423,105120.0,105110.0,0.30973167]
[1749886434296,1.28833423,105120.0,105110.0,0.32754965]
[1749886434525,1.28833423,105120.0,105110.0,0.3342314]
[1749886434698,1.28833423,105120.0,105110.0,0.33423139]
[1749886435367,1.28833423,105120.0,105110.0,0.31641341]
[1749886435600,1.28833423,105120.0,105110.0,0.33423547]
[1749886436021,1.28833423,105120.0,105110.0,0.33423546]
[1749886436358,1.28833423,105120.0,105110.0,0.31641451]
[1749886436560,1.28833423,105120.0,105110.0,0.33423544]
[1749886436923,0.73362829,105120.0,105110.0,0.34374893]
[1749886437140,1.28833423,105120.0,105110.0,0.34374893]
[1749886437296,1.28833423,105120.0,105110.0,0.34374865]
[1749886437499,1.28833423,105120.0,105110.0,0.34374861]
[1749886437722,1.28833423,105120.0,105110.0,0.34374859]
[1749886437968,1.28833423,105120.0,105110.0,0.3745486]
[1749886438542,1.28833423,105120.0,105110.0,0.3567279]
[1749886438758,0.73362829,105120.0,105110.0,0.3567279]
[1749886438958,1.28833423,105120.0,105110.0,0.37454859]
[1749886439183,1.28833423,105120.0,105110.0,0.35004515]
[1749886439386,1.28833423,105120.0,105110.0,0.36786584]
[1749886439583,1.28833423,105120.0,105110.0,0.37454859]
[1749886439968,1.28833423,105120.0,105110.0,0.3567279]
[1749886440174,1.28833423,105120.0,105110.0,0.36786584]
[1749886440407,1.28833423,105120.0,105110.0,0.37454814]
[1749886441491,0.73362829,105120.0,105110.0,0.36786539]
[1749886441699,1.29784689,105120.0,105110.0,0.37454768]
[1749886441898,1.29784689,105120.0,105110.0,0.35672698]
[1749886442111,1.29784689,105120.0,105110.0,0.36786489]
[1749886442320,1.29784689,105120.0,105110.0,0.35672697]
[1749886442723,1.29784689,105120.0,105110.0,0.35004424]
[1749886443247,0.74314095,105120.0,105110.0,0.35004424]
[1749886443532,1.29784689,105120.0,105110.0,0.35672697]
[1749886443752,1.29777028,105120.0,105110.0,0.35672697]
[1749886444430,1.29777028,105120.0,105110.0,0.35004424]
[1749886444665,1.29777028,105120.0,105110.0,0.35672697]
[1749886444884,1.45373028,105120.0,105110.0,0.35672727]
[1749886445112,1.45373028,105120.0,105110.0,0.35004424]
[1749886445339,1.45373028,105120.0,105110.0,0.34721934]
[1749886445900,1.45373028,105120.0,105110.0,0.34053095]
[1749886446384,1.45373028,105120.0,105110.0,0.3472193]
[1749886446818,1.45373028,105120.0,105110.0,0.34053095]
[1749886447047,1.45373028,105120.0,105110.0,0.3472193]
[1749886447721,1.45373028,105120.0,105110.0,0.34053095]
[1749886447965,0.89902434,105120.0,105110.0,0.34053095]
[1749886448189,1.45373028,105120.0,105110.0,0.36342085]
[1749886448647,1.45373028,105120.0,105110.0,0.35390765]
[1749886448869,1.45373028,105120.0,105110.0,0.33488078]
[1749886449092,1.45373028,105120.0,105110.0,0.33488081]
[1749886449338,1.45373028,105120.0,105110.0,0.33770591]
[1749886449549,1.45373028,105120.0,105110.0,0.3443943]
[1749886449999,0.89902434,105120.0,105110.0,0.3443943]
[1749886450210,1.45373028,105120.0,105110.0,0.33770591]
[1749886450423,1.45373028,105120.0,105110.0,0.3443943]
[1749886450637,1.25709028,105120.0,105110.0,0.3443943]
[1749886450860,1.45369028,105120.0,105110.0,0.35554163]
[1749886451118,1.45369028,105120.0,105110.0,0.33770591]
[1749886451343,1.45369028,105120.0,105110.0,0.3135943]
[1749886451574,1.45369028,105120.0,105110.0,0.33143002]
[1749886451841,1.45369028,105120.0,105110.0,0.3135943]
[1749886452083,1.45369028,105120.0,105110.0,0.33143002]
[1749886452501,1.45369028,105120.0,105110.0,0.32474163]
[1749886452949,1.45369028,105120.0,105110.0,0.30690591]
[1749886453210,1.45369028,105120.0,105110.0,0.32474163]
[1749886453665,1.45369028,105120.0,105110.0,0.3135943]
[1749886453883,1.45369028,105120.0,105110.0,0.33143002]
[1749886454769,1.44417762,105120.0,105110.0,0.32191654]
[1749886455034,1.44417762,105120.0,105110.0,0.32191663]
[1749886455228,0.88947168,105120.0,105110.0,0.32191667]
[1749886455453,1.44417762,105120.0,105110.0,0.32191668]
[1749886455679,1.44417762,105120.0,105110.0,0.32191671]
[1749886456772,1.44417762,105120.0,105110.0,0.30408087]
[1749886457002,1.44417762,105120.0,105110.0,0.32191662]
[1749886457222,1.44417762,105120.0,105110.0,0.32191658]
[1749886457437,1.44417762,105120.0,105110.0,0.3219166]
[1749886457663,1.44417762,105120.0,105110.0,0.32191661]
[1749886458094,1.44417762,105120.0,105110.0,0.30408084]
[1749886458310,1.44417762,105120.0,105110.0,0.32191661]
[1749886458522,1.44417762,105120.0,105110.0,0.31240313]
[1749886458746,1.44417762,105120.0,105110.0,0.30408102]
[1749886459024,1.44417762,105120.0,105110.0,0.30408162]
[1749886459239,1.44417762,105120.0,105110.0,0.29739261]
[1749886459483,1.43466469,105120.0,105110.0,0.31522997]
[1749886459709,1.43466469,105120.0,105110.0,0.32191898]
[1749886461095,0.87995875,105120.0,105110.0,0.30408162]
[1749886461327,1.43466469,105120.0,105110.0,0.32191898]
[1749886461547,1.43466469,105120.0,105110.0,0.30408162]
[1749886461766,1.43466469,105120.0,105110.0,0.32191898]
[1749886461987,1.43466469,105120.0,105110.0,0.30408162]
[1749886462174,1.43466469,105120.0,105110.0,0.32191898]
[1749886462677,0.004,105120.0,105110.0,1.09242229]
[1749886462944,0.004,105120.0,105110.0,1.08127295]
[1749886463216,0.57773045,105120.0,105110.0,0.37181011]
[1749886463447,0.59675586,105120.0,105110.0,0.46209636]
[1749886463677,0.79252754,105120.0,105110.0,0.44143605]
[1749886463925,0.79252754,105120.0,105110.0,0.44243615]
[1749886464217,0.79252754,105120.0,105110.0,0.62015215]
[1749886464430,0.79252754,105120.0,105110.0,0.11661284]
[1749886464431,0.90077968,105120.0,105110.0,0.11661284]
[1749886464642,0.80463046,105120.0,105110.0,0.46559486]
[1749886464843,0.79511762,105120.0,105110.0,0.32522906]
[1749886465051,0.79511762,105120.0,105110.0,0.32359491]
[1749886465260,0.79511762,105120.0,105110.0,0.33474265]
[1749886465461,0.79511762,105120.0,105110.0,0.31408134]
[1749886465617,0.79511762,105120.0,105110.0,0.31571928]
[1749886465818,0.79511762,105120.0,105110.0,0.3414366]
[1749886466008,0.89126684,105120.0,105110.0,0.29110955]
[1749886466214,0.89126684,105120.0,105110.0,0.30062336]
[1749886466430,0.89126684,105120.0,105110.0,0.3006111]
[1749886466687,0.89126684,105120.0,105110.0,0.29392095]
[1749886466898,0.89126684,105120.0,105110.0,0.33130647]
[1749886467096,0.89126684,105120.0,105110.0,0.33130646]
[1749886467292,0.89126684,105120.0,105110.0,0.33130645]
[1749886467646,0.79511762,105120.0,105110.0,0.33130645]
[1749886467848,0.79511762,105120.0,105110.0,0.34082011]
[1749886468050,0.79511762,105120.0,105110.0,0.33130645]
[1749886468270,0.19975288,105130.0,105120.0,0.25475875]
[1749886468512,0.25004738,105130.0,105120.0,0.81615018]
[1749886468775,0.25004738,105130.0,105120.0,0.84349035]
[1749886469028,0.24053571,105130.0,105120.0,0.2709569]
[1749886469288,0.24053571,105130.0,105120.0,0.28878417]
[1749886469511,0.23102377,105130.0,105120.0,0.08901249]
[1749886469724,0.19038377,105130.0,105120.0,0.08901249]
[1749886469941,0.38690377,105130.0,105120.0,0.08332727]
[1749886470162,0.19038377,105130.0,105120.0,0.07218522]
[1749886470421,0.38686377,105130.0,105120.0,0.07218522]
[1749886470592,0.38686377,105130.0,105120.0,0.08332727]
[1749886471204,0.94156971,105130.0,105120.0,0.09001249]
[1749886472261,1.03771893,105130.0,105120.0,0.02551249]
[1749886472479,1.10261893,105130.0,105120.0,0.02551249]
[1749886472685,1.10261893,105130.0,105120.0,0.02551286]
[1749886472887,1.00646971,105130.0,105120.0,0.02551286]
[1749886473294,1.00646971,105130.0,105120.0,0.02551341]
[1749886473696,1.00646971,105130.0,105120.0,0.01882727]
[1749886473897,1.00646971,105130.0,105120.0,0.02551341]
[1749886474683,1.00646971,105130.0,105120.0,0.02551346]
[1749886475289,0.45176377,105130.0,105120.0,0.02551346]
[1749886475489,0.97406971,105130.0,105120.0,0.02551346]
[1749886475691,0.94156971,105130.0,105120.0,0.02551604]
[1749886476075,0.94156971,105130.0,105120.0,0.02551603]
[1749886478494,0.94156971,105130.0,105120.0,0.07561603]
[1749886478701,0.94156971,105130.0,105120.0,0.07561724]
[1749886480112,0.94156971,105130.0,105120.0,0.07562047]
[1749886481385,0.97082888,105130.0,105120.0,0.0756213]
[1749886484200,0.97082888,105130.0,105120.0,0.07562183]
[1749886484400,0.94156971,105130.0,105120.0,0.07562183]
[1749886484604,0.94156971,105130.0,105120.0,0.07562243]
[1749886485846,0.94156971,105130.0,105120.0,0.0511]
[1749886488469,0.94156971,105130.0,105120.0,0.0828]
[1749886490120,0.7124483,105130.0,105120.0,0.0828]
[1749886490334,0.90268895,105130.0,105120.0,0.0828]
[1749886501753,0.93032966,105130.0,105120.0,0.0828]
[1749886505487,0.90268895,105130.0,105120.0,0.0828]
[1749886512257,0.74494659,105130.0,105120.0,0.0828]
[1749886512469,0.94114659,105130.0,105120.0,0.0828]
[1749886513107,0.38644065,105130.0,105120.0,0.0828]
[1749886513315,0.94114659,105130.0,105120.0,0.0828]
[1749886514350,1.99580175,105130.0,105120.0,0.0511]
[1749886515171,0.88638987,105130.0,105120.0,0.0511]
[1749886515374,1.99580175,105130.0,105120.0,0.0511]
[1749886516107,1.44109581,105130.0,105120.0,0.0511]
[1749886516351,1.44109581,105130.0,105120.0,0.0501]
[1749886516561,1.44509581,105130.0,105120.0,0.0501]
[1749886516955,1.41349581,105130.0,105120.0,0.0501]
[1749886520660,1.38129581,105130.0,105120.0,0.0501]
[1749886524120,0.82658987,105130.0,105120.0,0.0501]
[1749886524359,1.38129581,105130.0,105120.0,0.0501]
[1749886525935,0.82658987,105130.0,105120.0,0.0501]
[1749886526137,1.38129581,105130.0,105120.0,0.0501]
[1749886530356,2.23224351,105130.0,105120.0,0.0501]
[1749886530541,2.33138436,105130.0,105120.0,0.0501]
[1749886531003,2.35996036,105130.0,105120.0,0.0501]
[1749886531204,2.35996036,105130.0,105120.0,0.0301]
[1749886531931,2.36296036,105130.0,105120.0,0.0301]
[1749886532358,2.35896036,105130.0,105120.0,0.0301]
[1749886532884,2.36396036,105130.0,105120.0,0.0301]
[1749886534770,2.38670686,105130.0,105120.0,0.0301]
[1749886541466,2.32202686,105130.0,105120.0,0.0301]
[1749886541674,2.12590686,105130.0,105120.0,0.0625]
[1749886541884,2.32202686,105130.0,105120.0,0.0625]
[1749886542772,2.32202686,105130.0,105120.0,0.08032413]
[1749886542981,2.12590686,105130.0,105120.0,0.08032413]
[1749886543220,2.32202686,105130.0,105120.0,0.08032413]
[1749886543854,2.32202686,105130.0,105120.0,0.0803267]
[1749886544088,2.32202686,105130.0,105120.0,0.0625]
[1749886544304,2.32202686,105130.0,105120.0,0.08032671]
[1749886544736,2.32202686,105130.0,105120.0,0.08032666]
[1749886545162,2.32202686,105130.0,105120.0,0.08032629]
[1749886545787,2.12590686,105130.0,105120.0,0.08032629]
[1749886545998,2.32198686,105130.0,105120.0,0.08032579]
[1749886546281,2.32198686,105130.0,105120.0,0.0803258]
[1749886546530,2.32198686,105130.0,105120.0,0.0479258]
[1749886546706,2.32198686,105130.0,105120.0,0.0301]
[1749886547062,2.32198686,105130.0,105120.0,0.04792527]
[1749886547463,2.11136601,105130.0,105120.0,0.07842527]
[1749886547683,1.75274007,105130.0,105120.0,0.10932527]
[1749886547915,2.30744601,105130.0,105120.0,0.10932467]
[1749886548230,2.30744601,105130.0,105120.0,0.0915]
[1749886548378,2.30744601,105130.0,105120.0,0.10932467]
[1749886548562,2.30744601,105130.0,105120.0,0.10932262]
[1749886548765,2.30744601,105130.0,105120.0,0.0915]
[1749886548992,2.11136601,105130.0,105120.0,0.0915]
[1749886549197,2.30744601,105130.0,105120.0,0.10932262]
[1749886549551,2.30744601,105130.0,105120.0,0.10932258]
[1749886549756,2.30745176,105130.0,105120.0,0.10932258]
[1749886549964,2.30745176,105130.0,105120.0,0.10932196]
[1749886550169,2.30745176,105130.0,105120.0,0.0915]
[1749886550579,2.30745176,105130.0,105120.0,0.10932195]
[1749886550786,2.30745176,105130.0,105120.0,0.10932139]
[1749886551123,2.30745176,105130.0,105120.0,0.0915]
[1749886551331,2.30745176,105130.0,105120.0,0.10932139]
[1749886551922,2.30745176,105130.0,105120.0,0.1093208]
[1749886552742,2.30745176,105130.0,105120.0,0.10932018]
[1749886552964,2.30745176,105130.0,105120.0,0.10932017]
[1749886553964,2.30745176,105130.0,105120.0,0.0915]
[1749886554178,2.30745176,105130.0,105120.0,0.10931955]
[1749886554379,2.30745176,105130.0,105120.0,0.0915]
[1749886554673,2.30745176,105130.0,105120.0,0.10931896]
[1749886554891,2.30745176,105130.0,105120.0,0.0915]
[1749886555081,2.30745176,105130.0,105120.0,0.10931896]
[1749886555759,2.30745176,105130.0,105120.0,0.0915]
[1749886556982,2.58157176,105130.0,105120.0,0.0915]
[1749886557638,2.58157176,105130.0,105120.0,0.10931868]
[1749886557839,2.58157176,105130.0,105120.0,0.0915]
[1749886558058,2.58157176,105130.0,105120.0,0.10931866]
[1749886558272,2.58157176,105130.0,105120.0,0.0606]
[1749886558919,2.58157176,105130.0,105120.0,0.07842097]
[1749886559567,2.58157176,105130.0,105120.0,0.07842098]
[1749886559772,2.58157176,105130.0,105120.0,0.0606]
[1749886559988,2.58157176,105130.0,105120.0,0.07843163]
[1749886560380,2.58157176,105130.0,105120.0,0.0606]
[1749886560593,2.58157176,105130.0,105120.0,0.07843163]
[1749886560997,2.58157176,105130.0,105120.0,0.07843953]
[1749886561888,2.58157176,105130.0,105120.0,0.07843855]
[1749886562736,2.58157176,105130.0,105120.0,0.0606]
[1749886562937,2.58157176,105130.0,105120.0,0.07843855]
[1749886563149,2.58157176,105130.0,105120.0,0.07844235]
[1749886563359,2.59611261,105130.0,105120.0,0.07844235]
[1749886563574,2.59611261,105130.0,105120.0,0.04794235]
[1749886564220,2.59611261,105130.0,105120.0,0.04794265]
[1749886564638,2.59611261,105130.0,105120.0,0.04794264]
[1749886564840,2.49996339,105130.0,105120.0,0.04794264]
[1749886565138,2.49996339,105130.0,105120.0,0.07874264]
[1749886565767,2.49996339,105130.0,105120.0,0.0609]
[1749886566172,2.49996339,105130.0,105120.0,0.07874264]
[1749886566575,2.49996339,105130.0,105120.0,0.0927]
[1749886566844,2.49996339,105130.0,105120.0,0.11054264]
[1749886567062,2.40003261,105130.0,105120.0,0.11054264]
[1749886567265,2.49988339,105130.0,105120.0,0.11054264]
[1749886567469,2.49988339,105130.0,105120.0,0.11054143]
[1749886567771,2.49988339,105130.0,105120.0,0.0927]
[1749886567982,2.49988339,105130.0,105120.0,0.11054143]
[1749886568195,2.49988339,105130.0,105120.0,0.11054142]
[1749886569019,2.59603261,105130.0,105120.0,0.11054142]
[1749886569244,2.59603261,105130.0,105120.0,0.11054144]
[1749886569661,2.59603261,105130.0,105120.0,0.0927]
[1749886569879,2.59603261,105130.0,105120.0,0.11054145]
[1749886570346,2.59603261,105130.0,105120.0,0.11054146]
[1749886570772,1.48662073,105130.0,105120.0,0.11054146]
[1749886571185,2.59603261,105130.0,105120.0,0.0927]
[1749886572015,2.59603261,105130.0,105120.0,0.11054146]
[1749886572407,2.59603261,105130.0,105120.0,0.0927]
[1749886572610,2.59603261,105130.0,105120.0,0.11054146]
[1749886572841,2.59603261,105130.0,105120.0,0.0927]
[1749886573053,2.59603261,105130.0,105120.0,0.11054146]
[1749886573255,2.59603261,105130.0,105120.0,0.0927]
[1749886573419,2.59603261,105130.0,105120.0,0.11054147]
[1749886573628,2.59603261,105130.0,105120.0,0.0927]
[1749886573826,2.59603261,105130.0,105120.0,0.11054146]
[1749886574037,2.59603261,105130.0,105120.0,0.0927]
[1749886574577,2.59603261,105130.0,105120.0,0.11054146]
[1749886575407,1.48662073,105130.0,105120.0,0.11054146]
[1749886575606,2.59603261,105130.0,105120.0,0.0927]
[1749886576017,2.59603261,105130.0,105120.0,0.11054145]
[1749886576234,2.59603261,105130.0,105120.0,0.0927]
[1749886576493,2.59603261,105130.0,105120.0,0.11054119]
[1749886577149,2.59603261,105130.0,105120.0,0.0927]
[1749886577363,2.40579196,105130.0,105120.0,0.11054119]
[1749886577578,2.30964274,105130.0,105120.0,0.11054119]
[1749886577965,2.49988339,105130.0,105120.0,0.11054119]
[1749886578639,2.49988339,105130.0,105120.0,0.11054006]
[1749886579579,2.49988339,105130.0,105120.0,0.0927]
[1749886579970,2.49988339,105130.0,105120.0,0.11054006]
[1749886580228,2.49988339,105130.0,105120.0,0.0927]
[1749886580378,2.49988339,105130.0,105120.0,0.11054006]
[1749886580583,2.49988339,105130.0,105120.0,0.0927]
[1749886580786,1.2796489,105130.0,105120.0,0.11054006]
[1749886581053,1.83435484,105130.0,105120.0,0.11722985]
[1749886581341,1.83435484,105130.0,105120.0,0.11053944]
[1749886581641,1.83435484,105130.0,105120.0,0.09938983]
[1749886582103,1.83435484,105130.0,105120.0,0.11722939]
[1749886582456,1.83435484,105130.0,105120.0,0.09938983]
[1749886582664,1.83435484,105130.0,105120.0,0.0927]
[1749886582846,1.83435484,105130.0,105120.0,0.11053956]
[1749886583250,1.83435484,105130.0,105120.0,0.11722939]
[1749886583658,1.83435484,105130.0,105120.0,0.0927]
[1749886583881,1.83435484,105130.0,105120.0,0.11053953]
[1749886584076,1.83435484,105130.0,105120.0,0.11722938]
[1749886584248,1.83435484,105130.0,105120.0,0.11722939]
[1749886584467,1.83435484,105130.0,105120.0,0.11053956]
[1749886584674,1.83435484,105130.0,105120.0,0.11722939]
[1749886584872,1.83435484,105130.0,105120.0,0.11053956]
[1749886585080,1.83435484,105130.0,105120.0,0.11722939]
[1749886585539,1.83435484,105130.0,105120.0,0.11053956]
[1749886585720,1.83435484,105130.0,105120.0,0.11722939]
[1749886586265,1.83435484,105130.0,105120.0,0.0927]
[1749886586504,1.56023484,105130.0,105120.0,0.09938983]
[1749886586707,1.56023484,105130.0,105120.0,0.11053956]
[1749886587118,1.56023484,105130.0,105120.0,0.11722939]
[1749886587536,1.56023484,105130.0,105120.0,0.11722805]
[1749886587743,1.56023484,105130.0,105120.0,0.11722446]
[1749886587948,1.56023484,105130.0,105120.0,0.11722445]
[1749886588166,1.56023484,105130.0,105120.0,0.1105358]
[1749886588367,1.56023484,105130.0,105120.0,0.11722422]
[1749886588575,1.56023484,105130.0,105120.0,0.11722418]
[1749886589189,1.56023484,105130.0,105120.0,0.11053577]
[1749886589411,1.56023484,105130.0,105120.0,0.11722418]
[1749886590396,1.56023484,105130.0,105120.0,0.09938841]
[1749886590615,1.56023484,105130.0,105120.0,0.11722417]
[1749886591424,1.0054889,105130.0,105120.0,0.11053576]
[1749886591633,1.56019484,105130.0,105120.0,0.11053576]
[1749886591833,1.53744259,105130.0,105120.0,0.11722389]
[1749886592000,1.53744259,105130.0,105120.0,0.11053576]
[1749886592362,1.53744259,105130.0,105120.0,0.11722316]
[1749886592978,1.34152259,105130.0,105120.0,0.09938813]
[1749886593179,1.53744259,105130.0,105120.0,0.11721904]
[1749886593432,0.98273665,105130.0,105120.0,0.11721904]
[1749886593634,1.53744259,105130.0,105120.0,0.09938701]
[1749886593841,1.53744259,105130.0,105120.0,0.11053203]
[1749886594046,1.53744259,105130.0,105120.0,0.11721904]
[1749886594706,1.53744259,105130.0,105120.0,0.09938701]
[1749886594928,1.53744259,105130.0,105120.0,0.11721893]
[1749886595407,1.53744259,105130.0,105120.0,0.11721892]
[1749886596001,1.53744259,105130.0,105120.0,0.11721884]
[1749886596002,0.82188259,105130.0,105120.0,0.11721884]
[1749886596210,1.31740259,105130.0,105120.0,0.11721835]
[1749886596408,1.31740259,105130.0,105120.0,0.11721802]
[1749886596643,1.31740259,105130.0,105120.0,0.11053129]
[1749886596817,1.31740259,105130.0,105120.0,0.11721802]
[1749886597486,1.31740259,105130.0,105120.0,0.1105418]
[1749886597678,1.31740259,105130.0,105120.0,0.09937658]
[1749886598093,1.31740259,105130.0,105120.0,0.11718078]
[1749886598293,1.31740259,105130.0,105120.0,0.0927]
[1749886598428,1.31740259,105130.0,105120.0,0.09937657]
[1749886598838,1.31740259,105130.0,105120.0,0.1105042]
[1749886599039,1.31740259,105130.0,105120.0,0.11718077]
[1749886599274,1.31740259,105130.0,105120.0,0.13498495]
[1749886599460,1.31740259,105130.0,105120.0,0.13498496]
[1749886599858,1.31740259,105130.0,105120.0,0.1105042]
[1749886600062,1.31740259,105130.0,105120.0,0.13498495]
[1749886600290,1.31740259,105130.0,105120.0,0.13498496]
[1749886600496,1.31740259,105130.0,105120.0,0.11718077]
[1749886600708,1.31740259,105130.0,105120.0,0.13498494]
[1749886600897,1.31740259,105130.0,105120.0,0.12830838]
[1749886601270,1.31740259,105130.0,105120.0,0.13498495]
[1749886601490,1.31740259,105130.0,105120.0,0.11718077]
[1749886601829,1.31740259,105130.0,105120.0,0.13498495]
[1749886602006,1.31740259,105130.0,105120.0,0.11718077]
[1749886602213,1.31740259,105130.0,105120.0,0.13498495]
[1749886603121,1.31740259,105130.0,105120.0,0.13498496]
[1749886603527,1.31740259,105130.0,105120.0,0.11718077]
[1749886603735,1.31740259,105130.0,105120.0,0.13498496]
[1749886604159,1.31740259,105130.0,105120.0,0.13498497]
[1749886604371,1.31740259,105130.0,105120.0,0.1105042]
[1749886604607,1.31740259,105130.0,105120.0,0.134985]
[1749886604836,1.31740259,105130.0,105120.0,0.13498501]
[1749886605054,1.31740259,105130.0,105120.0,0.11718081]
[1749886605271,1.31740259,105130.0,105120.0,0.1105042]
[1749886605508,1.31740259,105130.0,105120.0,0.11718081]
[1749886605726,1.31740259,105130.0,105120.0,0.1105042]
[1749886605953,1.31740259,105130.0,105120.0,0.11718081]
[1749886606211,1.31740259,105130.0,105120.0,0.13498501]
[1749886606463,1.31740259,105130.0,105120.0,0.11718077]
[1749886606683,1.31740259,105130.0,105120.0,0.13498497]
[1749886606911,0.76269665,105130.0,105120.0,0.16941382]
[1749886607129,1.31740259,105130.0,105120.0,0.16941379]
[1749886607351,1.31740259,105130.0,105120.0,0.13498492]
[1749886607786,1.31740259,105130.0,105120.0,0.13498493]
[1749886608456,1.31740259,105130.0,105120.0,0.1527891]
[1749886608914,1.31740259,105130.0,105120.0,1.0063444]
[1749886608915,0.08644758,105130.0,105120.0,1.0063444]
[1749886609138,0.07689473,105130.0,105120.0,1.10249149]
[1749886609404,0.07689473,105130.0,105120.0,0.56397282]
[1749886609638,0.008,105130.0,105120.0,1.65558313]
[1749886609862,0.003,105130.0,105120.0,1.10087678]
[1749886610086,0.05938125,105140.0,105130.0,0.28197565]
[1749886610316,0.05942893,105140.0,105130.0,0.39601758]
[1749886610544,0.61413487,105140.0,105130.0,0.40269264]
[1749886610746,0.58328581,105140.0,105130.0,0.40269264]
[1749886611008,0.06893987,105140.0,105130.0,0.40269264]
[1749886611220,0.62364581,105140.0,105130.0,0.38489247]
[1749886611434,0.62764581,105140.0,105130.0,0.37821741]
[1749886611667,0.62764581,105140.0,105130.0,0.40269264]
[1749886611914,0.00404768,105140.0,105130.0,0.40269264]
[1749886612134,0.06342884,105140.0,105130.0,0.99222715]
[1749886612374,0.06642884,105140.0,105130.0,0.97442698]
[1749886612584,0.05691817,105140.0,105130.0,0.43752121]
[1749886612797,0.01655817,105140.0,105130.0,0.43752108]
[1749886613014,0.06642884,105140.0,105130.0,0.43084585]
[1749886613226,0.06642884,105140.0,105130.0,0.41304598]
[1749886613434,0.0759396,105140.0,105130.0,0.43752082]
[1749886613652,0.00704768,105140.0,105130.0,1.21660962]
[1749886613866,0.00704768,105140.0,105130.0,1.22328307]
[1749886614082,0.00704768,105140.0,105130.0,1.20548432]
[1749886614293,0.00704768,105140.0,105130.0,1.21660844]
[1749886614471,0.00704768,105140.0,105130.0,1.19880986]
[1749886614750,0.00704768,105140.0,105130.0,1.21660844]
[1749886614961,0.00704768,105140.0,105130.0,1.21652621]
[1749886615888,0.00704768,105140.0,105130.0,1.21652538]
[1749886616126,0.00404768,105140.0,105130.0,1.21652527]
[1749886616354,0.00404768,105140.0,105130.0,1.21652522]
[1749886616355,4.768e-05,105140.0,105130.0,1.21652522]
[1749886616578,0.00104768,105140.0,105130.0,1.57135071]
[1749886617481,0.00104768,105140.0,105130.0,1.49911556]
[1749886617703,0.00104768,105140.0,105130.0,1.51111556]
[1749886617918,0.00104768,105140.0,105130.0,1.49911556]
[1749886618434,4.768e-05,105140.0,105130.0,1.50311556]
[1749886618673,0.00104768,105140.0,105130.0,1.51211556]
[1749886619115,4.768e-05,105140.0,105130.0,1.50311556]
[1749886619564,0.00104768,105140.0,105130.0,1.51211556]
[1749886620027,0.00104768,105140.0,105130.0,1.43649762]
[1749886622108,0.00104768,105140.0,105130.0,1.43645762]
[1749886623309,0.00104768,105140.0,105130.0,1.56207556]
[1749886623734,0.00104768,105140.0,105130.0,1.63811628]
[1749886624576,0.24952586,105180.0,105170.0,0.065]
[1749886624790,0.04991447,105180.0,105170.0,0.5627546]
[1749886625420,0.07843599,105180.0,105170.0,0.5627546]
[1749886625623,0.03807599,105180.0,105170.0,0.5627546]
[1749886625826,0.03907599,105180.0,105170.0,0.5627546]
[1749886626032,0.02956866,105180.0,105170.0,0.5627546]
[1749886626282,0.00104769,105180.0,105170.0,1.05522539]
[1749886626722,0.00104769,105180.0,105170.0,0.5627546]
[1749886626948,0.01906134,105180.0,105170.0,0.5647546]
[1749886627164,0.01906125,105180.0,105170.0,0.5647546]
[1749886627371,0.02006116,105180.0,105170.0,0.5647546]
[1749886627613,0.02956812,105180.0,105170.0,0.5647546]
[1749886627827,0.03907526,105180.0,105170.0,0.5647546]
[1749886628081,0.02956812,105180.0,105170.0,0.5647546]
[1749886628572,0.02956812,105180.0,105170.0,0.57505232]
[1749886629486,0.01055447,105180.0,105170.0,0.57505232]
[1749886629715,0.01055438,105180.0,105170.0,0.57505232]
[1749886629951,0.00104769,105180.0,105170.0,0.57505232]
[1749886630607,0.00104769,105180.0,105170.0,1.06752311]
[1749886632386,0.00104769,105180.0,105170.0,1.06748311]
[1749886634399,0.00104769,105180.0,105170.0,1.40748311]
[1749886635273,0.00104769,105180.0,105170.0,1.42202396]
[1749886635753,0.00104769,105180.0,105170.0,1.5476419]
[1749886635973,0.00104769,105180.0,105170.0,1.41832262]
[1749886636197,0.00104769,105180.0,105170.0,0.83327026]
[1749886636418,0.00104769,105180.0,105170.0,0.73023192]
[1749886636629,0.00104769,105180.0,105170.0,0.39023192]
[1749886636840,4.769e-05,105180.0,105170.0,0.54555192]
[1749886637275,4.769e-05,105180.0,105170.0,0.39923192]
[1749886637493,4.769e-05,105180.0,105170.0,0.54555192]
[1749886637716,4.769e-05,105180.0,105170.0,0.64670114]
[1749886637941,4.769e-05,105180.0,105170.0,0.65270114]
[1749886638827,4.769e-05,105180.0,105170.0,0.49738114]
[1749886638828,0.00955438,105180.0,105170.0,0.49738114]
[1749886639043,0.00955438,105180.0,105170.0,0.65270114]
[1749886639275,0.00955438,105180.0,105170.0,0.49738114]
[1749886639474,0.00955438,105180.0,105170.0,0.65270114]
[1749886639693,4.769e-05,105180.0,105170.0,0.65270114]
[1749886640778,4.769e-05,105180.0,105170.0,1.14517193]
[1749886641938,4.769e-05,105180.0,105170.0,1.15971278]